[Event "Sunway Sitges Chess Festival"]
[Date "2024.12.21"]
[White "Gorshtein, Ido"]
[Black "Sofronie, Iulian"]
[WhiteElo "2422"]
[BlackElo "2368"]
[Round "6.2"]
[Result "1-0"]
[TimeControl "40/5400+30:1800+30"]

1. d4 {[%clk 1:30:50]} 1... Nf6 {[%clk 1:30:53]} 2. c4 {[%clk 1:31:13]} 2... e6
{[%clk 1:31:18]} 3. Nf3 {[%clk 1:31:35]} 3... b6 {[%clk 1:31:28]} 4. g3 {[%clk
1:31:37]} 4... Bb7 {[%clk 1:31:40]} 5. Bg2 {[%clk 1:31:57]} 5... Be7 {[%clk
1:31:48]} 6. O-O {[%clk 1:32:08]} 6... O-O {[%clk 1:32:13]} 7. Re1 {[%clk
1:31:35]} 7... Na6 {[%clk 1:28:21]} 8. Bf4 {[%clk 1:28:39]} 8... c5 {[%clk
1:21:39]} 9. d5 {[%clk 1:26:55]} 9... exd5 {[%clk 1:20:47]} 10. Nh4 {[%clk
1:24:55]} 10... g6 {[%clk 1:13:16]} 11. cxd5 {[%clk 1:06:31]} 11... d6 {[%clk
1:13:25]} 12. Bh6 {[%clk 1:03:03]} 12... Re8 {[%clk 1:13:17]} 13. e4 {[%clk
1:03:24]} 13... Nd7 {[%clk 1:00:48]} 14. Nf3 {[%clk 1:02:59]} 14... Bf6 {[%clk
1:00:12]} 15. Nbd2 {[%clk 0:59:38]} 15... b5 {[%clk 0:55:24]} 16. a4 {[%clk
0:54:43]} 16... Nc7 {[%clk 0:42:24]} 17. axb5 {[%clk 0:54:02]} 17... Nxb5 {[%clk
0:42:46]} 18. Nc4 {[%clk 0:53:27]} 18... Nb6 {[%clk 0:41:37]} 19. Na5 {[%clk
0:49:41]} 19... Rb8 {[%clk 0:41:42]} 20. Qd2 {[%clk 0:36:13]} 20... Nd7 {[%clk
0:35:34]} 21. Bf4 {[%clk 0:32:58]} 21... Ba8 {[%clk 0:31:42]} 22. h4 {[%clk
0:29:46]} 22... Nd4 {[%clk 0:20:25]} 23. Nc4 {[%clk 0:19:20]} 23... Nb3 {[%clk
0:15:44]} 24. Qc2 {[%clk 0:19:29]} 24... Nxa1 {[%clk 0:15:40]} 25. Rxa1 {[%clk
0:19:56]} 25... Ne5 {[%clk 0:12:42]} 26. Nfxe5 {[%clk 0:13:52]} 26... Bxe5
{[%clk 0:13:04]} 27. Bxe5 {[%clk 0:13:22]} 27... dxe5 {[%clk 0:13:30]} 28. Qc3
{[%clk 0:13:41]} 28... Qc7 {[%clk 0:09:22]} 29. h5 {[%clk 0:10:31]} 29... Rbd8
{[%clk 0:07:15]} 30. Ra6 {[%clk 0:09:19]} 30... Bb7 {[%clk 0:05:25]} 31. Rxa7
{[%clk 0:08:47]} 31... Ra8 {[%clk 0:03:51]} 32. d6 {[%clk 0:07:24]} 32... Qb8
{[%clk 0:04:17]} 33. Rxa8 {[%clk 0:07:19]} 33... Bxa8 {[%clk 0:03:20]} 34. d7
{[%clk 0:07:32]} 34... Rd8 {[%clk 0:03:45]} 35. Nxe5 {[%clk 0:07:37]} 35... Qd6
{[%clk 0:03:58]} 36. h6 {[%clk 0:05:41]} 36... f6 {[%clk 0:02:32]} 37. Qb3+
{[%clk 0:03:38]} 37... Bd5 {[%clk 0:02:11]} 38. exd5 {[%clk 0:03:59]} 38... fxe5
{[%clk 0:01:15]} 39. Bh3 {[%clk 0:03:51]} 39... Kf8 {[%clk 0:00:35]} 40. Be6
{[%clk 0:04:05]} 40... Ke7 {[%clk 0:01:04]} 41. Qa4 {[%clk 0:30:18]} 41... Rf8
{[%clk 0:24:57]} 42. Qh4+ {[%clk 0:28:02]} 42... Rf6 {[%clk 0:25:23]} 43. b3
{[%clk 0:23:35]} 43... Qb6 {[%clk 0:25:29]} 44. Qa4 {[%clk 0:21:45]} 44... Rf8
{[%clk 0:24:08]} 45. d8=B+ {[%clk 0:18:18]} 45... Rxd8 {[%clk 0:16:27]} 46. Qh4+
{[%clk 0:19:07]} 46... Kd6 {[%clk 0:16:51]} 47. Qf6 {[%clk 0:19:10]} 47... c4
{[%clk 0:16:38]} 48. bxc4 {[%clk 0:18:55]} 48... Qb8 {[%clk 0:11:22]} 49. Bc8+
{[%clk 0:19:00]} 1-0

[Variant "Standard"]
[Site "Europe Echecs"]

[Event "Sunway Sitges Chess Festival"]
[Date "2024.12.21"]
[White "Raczek, Krzysztof"]
[Black "Anwesh, Upadhyaya"]
[WhiteElo "2443"]
[BlackElo "2379"]
[Round "6.3"]
[Result "1/2-1/2"]
[TimeControl "40/5400+30:1800+30"]

1. e4 {[%clk 1:30:58]} 1... e5 {[%clk 1:26:58]} 2. Nf3 {[%clk 1:31:15]} 2... Nc6
{[%clk 1:27:02]} 3. Bb5 {[%clk 1:31:39]} 3... a6 {[%clk 1:26:34]} 4. Ba4 {[%clk
1:32:03]} 4... Nf6 {[%clk 1:26:06]} 5. O-O {[%clk 1:31:47]} 5... Be7 {[%clk
1:25:49]} 6. d3 {[%clk 1:32:01]} 6... b5 {[%clk 1:26:12]} 7. Bb3 {[%clk
1:32:29]} 7... d6 {[%clk 1:25:34]} 8. a3 {[%clk 1:32:43]} 8... O-O {[%clk
1:24:32]} 9. Nc3 {[%clk 1:33:07]} 9... h6 {[%clk 1:15:40]} 10. h3 {[%clk
1:31:17]} 10... Be6 {[%clk 1:12:18]} 11. Nd5 {[%clk 1:29:25]} 11... Re8 {[%clk
0:56:44]} 12. Be3 {[%clk 1:08:12]} 12... Bf8 {[%clk 0:54:14]} 13. c4 {[%clk
0:55:30]} 13... Na5 {[%clk 0:48:51]} 14. Ba2 {[%clk 0:47:44]} 14... c5 {[%clk
0:36:20]} 15. b4 {[%clk 0:33:30]} 15... Nc6 {[%clk 0:36:30]} 16. Rc1 {[%clk
0:32:57]} 16... Nd4 {[%clk 0:27:55]} 17. Nxd4 {[%clk 0:28:57]} 17... exd4 {[%clk
0:26:12]} 18. Bd2 {[%clk 0:28:13]} 18... bxc4 {[%clk 0:21:38]} 19. Nxf6+ {[%clk
0:28:01]} 19... Qxf6 {[%clk 0:22:01]} 20. Bxc4 {[%clk 0:28:27]} 20... Bxc4
{[%clk 0:19:15]} 21. Rxc4 {[%clk 0:28:56]} 21... Qe6 {[%clk 0:18:39]} 22. Qf3
{[%clk 0:18:28]} 22... a5 {[%clk 0:15:18]} 23. b5 {[%clk 0:14:57]} 23... a4
{[%clk 0:11:11]} 24. Rb1 {[%clk 0:14:32]} 24... Reb8 {[%clk 0:06:47]} 25. Qd1
{[%clk 0:13:32]} 25... d5 {[%clk 0:04:44]} 26. exd5 {[%clk 0:12:25]} 26... Qf5
{[%clk 0:04:22]} 27. Qf3 {[%clk 0:02:47]} 27... Qd7 {[%clk 0:04:33]} 28. Qg4
{[%clk 0:01:22]} 28... Qxd5 {[%clk 0:04:40]} 29. Bf4 {[%clk 0:00:37]} 29... Rb7
{[%clk 0:02:49]} 30. b6 {[%clk 0:00:46]} 30... Qc6 {[%clk 0:02:03]} 31. Bc7
{[%clk 0:00:34]} 31... Bd6 {[%clk 0:02:26]} 32. Bxd6 {[%clk 0:00:37]} 32... Qxd6
{[%clk 0:02:50]} 33. Qg3 {[%clk 0:00:32]} 33... Qxg3 {[%clk 0:01:18]} 1/2-1/2

[Variant "Standard"]
[Site "Europe Echecs"]

[Event "Sunway Sitges Chess Festival"]
[Date "2024.12.21"]
[White "Abergel, Thal"]
[Black "Song, Edward"]
[WhiteElo "2411"]
[BlackElo "2363"]
[Round "6.4"]
[Result "1/2-1/2"]
[TimeControl "40/5400+30:1800+30"]

1. Nf3 {[%clk 1:30:59]} 1... d5 {[%clk 1:27:49]} 2. g3 {[%clk 1:31:16]} 2... Bg4
{[%clk 1:28:11]} 3. Bg2 {[%clk 1:30:45]} 3... c6 {[%clk 1:28:33]} 4. d3 {[%clk
1:29:56]} 4... Nf6 {[%clk 1:22:21]} 5. Nbd2 {[%clk 1:29:34]} 5... Nbd7 {[%clk
1:21:50]} 6. c4 {[%clk 1:28:57]} 6... e6 {[%clk 1:20:33]} 7. b3 {[%clk 1:29:02]}
7... Bd6 {[%clk 1:17:00]} 8. Bb2 {[%clk 1:29:26]} 8... O-O {[%clk 1:17:05]} 9.
Qc2 {[%clk 1:29:00]} 9... Qe7 {[%clk 1:15:29]} 10. O-O {[%clk 1:28:06]} 10...
Ba3 {[%clk 1:14:36]} 11. Rac1 {[%clk 1:24:34]} 11... a5 {[%clk 1:12:10]} 12.
Rfe1 {[%clk 1:18:51]} 12... Rfe8 {[%clk 1:07:30]} 13. cxd5 {[%clk 1:15:28]}
13... exd5 {[%clk 1:07:00]} 14. Nd4 {[%clk 1:15:41]} 14... h6 {[%clk 0:39:04]}
15. h3 {[%clk 1:10:30]} 15... Bh5 {[%clk 0:36:32]} 16. Nf5 {[%clk 1:05:39]}
16... Qf8 {[%clk 0:36:43]} 17. Bxa3 {[%clk 1:01:00]} 17... Qxa3 {[%clk 0:37:12]}
18. e4 {[%clk 1:01:20]} 18... Bg6 {[%clk 0:34:56]} 19. Nb1 {[%clk 0:54:00]}
19... Qb4 {[%clk 0:31:47]} 20. a3 {[%clk 0:53:49]} 20... Qb6 {[%clk 0:31:44]}
21. Nh4 {[%clk 0:52:54]} 21... Bh7 {[%clk 0:31:27]} 22. Nd2 {[%clk 0:45:24]}
22... Ne5 {[%clk 0:27:20]} 23. Nhf3 {[%clk 0:38:32]} 23... Nxf3+ {[%clk
0:24:08]} 24. Bxf3 {[%clk 0:37:52]} 24... Qd4 {[%clk 0:22:37]} 25. Bg2 {[%clk
0:36:17]} 25... dxe4 {[%clk 0:21:04]} 26. Nxe4 {[%clk 0:36:11]} 26... Rad8
{[%clk 0:17:08]} 27. Nc5 {[%clk 0:33:15]} 27... Rxe1+ {[%clk 0:15:40]} 28. Rxe1
{[%clk 0:32:53]} 28... Bxd3 {[%clk 0:12:59]} 29. Qc1 {[%clk 0:32:25]} 29... b6
{[%clk 0:12:30]} 30. Nxd3 {[%clk 0:29:29]} 30... Qxd3 {[%clk 0:12:25]} 31. Qxc6
{[%clk 0:29:42]} 31... Qxb3 {[%clk 0:11:27]} 32. Re3 {[%clk 0:29:47]} 32... Qd1+
{[%clk 0:11:32]} 33. Kh2 {[%clk 0:29:50]} 33... Qd6 {[%clk 0:11:36]} 34. Qb5
{[%clk 0:24:10]} 34... Qd4 {[%clk 0:07:57]} 35. Bf3 {[%clk 0:22:53]} 35... Rc8
{[%clk 0:03:14]} 36. Kg2 {[%clk 0:22:03]} 36... Qc5 {[%clk 0:01:32]} 37. Qb2
{[%clk 0:20:26]} 37... Re8 {[%clk 0:00:58]} 38. Rb3 {[%clk 0:19:28]} 38... Rb8
{[%clk 0:01:11]} 39. Rb5 {[%clk 0:19:27]} 39... Qd6 {[%clk 0:01:29]} 40. Qc3
{[%clk 0:48:51]} 40... Rd8 {[%clk 0:30:35]} 41. Qe3 {[%clk 0:46:20]} 41... Rb8
{[%clk 0:29:07]} 42. a4 {[%clk 0:45:25]} 42... Qc7 {[%clk 0:16:56]} 43. h4
{[%clk 0:35:58]} 43... Qc4 {[%clk 0:16:36]} 44. Rxb6 {[%clk 0:30:37]} 44... Rxb6
{[%clk 0:16:29]} 45. Qxb6 {[%clk 0:31:02]} 45... Qxa4 {[%clk 0:16:53]} 46. Qd8+
{[%clk 0:31:13]} 46... Kh7 {[%clk 0:17:10]} 47. Qd3+ {[%clk 0:31:37]} 47... Kg8
{[%clk 0:17:33]} 48. Qd8+ {[%clk 0:32:04]} 48... Kh7 {[%clk 0:17:58]} 49. Qd3+
{[%clk 0:32:10]} 49... g6 {[%clk 0:16:29]} 50. h5 {[%clk 0:32:08]} 50... Qb4
{[%clk 0:16:18]} 51. hxg6+ {[%clk 0:32:11]} 51... fxg6 {[%clk 0:16:46]} 52. Qd8
{[%clk 0:31:24]} 52... Kg7 {[%clk 0:16:23]} 53. Qc7+ {[%clk 0:31:19]} 53... Kf8
{[%clk 0:16:41]} 54. Qd8+ {[%clk 0:30:58]} 54... Kf7 {[%clk 0:16:59]} 55. Qc7+
{[%clk 0:31:17]} 55... Kf8 {[%clk 0:09:48]} 56. Qd8+ {[%clk 0:30:55]} 56... Kf7
{[%clk 0:10:15]} 57. Qc7+ {[%clk 0:31:12]} 57... Kf8 {[%clk 0:10:35]} 1/2-1/2

[Variant "Standard"]
[Site "Europe Echecs"]

[Event "Sunway Sitges Chess Festival"]
[Date "2024.12.21"]
[White "Ivanchuk, Vasyl"]
[Black "Gormally, Daniel W"]
[WhiteElo "2630"]
[BlackElo "2424"]
[Round "6.5"]
[Result "1-0"]
[TimeControl "40/5400+30:1800+30"]

1. e4 {[%clk 1:30:58]} 1... c5 {[%clk 1:30:39]} 2. Nf3 {[%clk 1:31:23]} 2... Nc6
{[%clk 1:30:49]} 3. d4 {[%clk 1:31:33]} 3... cxd4 {[%clk 1:31:10]} 4. Nxd4
{[%clk 1:31:57]} 4... Nf6 {[%clk 1:30:39]} 5. Nc3 {[%clk 1:32:22]} 5... g6
{[%clk 1:29:20]} 6. Bc4 {[%clk 1:30:36]} 6... Bg7 {[%clk 1:25:45]} 7. Nxc6
{[%clk 1:23:21]} 7... dxc6 {[%clk 1:20:41]} 8. Qxd8+ {[%clk 1:23:41]} 8... Kxd8
{[%clk 1:21:07]} 9. a4 {[%clk 1:16:37]} 9... Ng4 {[%clk 1:09:47]} 10. Bd2 {[%clk
1:03:20]} 10... f5 {[%clk 0:59:25]} 11. h3 {[%clk 0:49:11]} 11... Ne5 {[%clk
0:56:37]} 12. Ba2 {[%clk 0:49:35]} 12... Nd7 {[%clk 0:48:11]} 13. O-O-O {[%clk
0:48:51]} 13... Kc7 {[%clk 0:48:34]} 14. exf5 {[%clk 0:21:25]} 14... gxf5 {[%clk
0:48:44]} 15. g4 {[%clk 0:21:53]} 15... Ne5 {[%clk 0:42:41]} 16. Rhe1 {[%clk
0:17:38]} 16... Ng6 {[%clk 0:42:13]} 17. h4 {[%clk 0:17:48]} 17... e5 {[%clk
0:37:38]} 18. h5 {[%clk 0:17:37]} 18... Nh4 {[%clk 0:38:03]} 19. Bg5 {[%clk
0:04:35]} 19... Nf3 {[%clk 0:35:06]} 20. h6 {[%clk 0:05:03]} 20... Bf8 {[%clk
0:34:22]} 21. Bd8+ {[%clk 0:05:27]} 21... Kb8 {[%clk 0:34:35]} 22. g5 {[%clk
0:05:55]} 22... Bc5 {[%clk 0:30:24]} 23. Bf6 {[%clk 0:05:37]} 23... Re8 {[%clk
0:29:47]} 24. g6 {[%clk 0:04:54]} 24... hxg6 {[%clk 0:30:10]} 25. h7 {[%clk
0:05:02]} 1-0

[Variant "Standard"]
[Site "Europe Echecs"]

[Event "Sunway Sitges Chess Festival"]
[Date "2024.12.21"]
[White "Xu, Minghui"]
[Black "Moussard, Jules"]
[WhiteElo "2405"]
[BlackElo "2649"]
[Round "6.6"]
[Result "0-1"]
[TimeControl "40/5400+30:1800+30"]

1. d4 {[%clk 1:29:09]} 1... Nf6 {[%clk 1:24:45]} 2. c4 {[%clk 1:29:24]} 2... e6
{[%clk 1:25:08]} 3. Nc3 {[%clk 1:29:29]} 3... Bb4 {[%clk 1:25:29]} 4. e3 {[%clk
1:29:44]} 4... O-O {[%clk 1:25:47]} 5. Bd3 {[%clk 1:29:56]} 5... Re8 {[%clk
1:25:11]} 6. Ne2 {[%clk 1:24:34]} 6... d5 {[%clk 1:23:41]} 7. O-O {[%clk
1:24:55]} 7... Bf8 {[%clk 1:22:07]} 8. Ng3 {[%clk 1:20:05]} 8... a6 {[%clk
1:17:04]} 9. e4 {[%clk 1:09:16]} 9... dxe4 {[%clk 1:08:24]} 10. Ncxe4 {[%clk
1:03:26]} 10... Qxd4 {[%clk 1:05:41]} 11. Be3 {[%clk 0:55:03]} 11... Qd8 {[%clk
1:05:49]} 12. Nxf6+ {[%clk 0:31:34]} 12... Qxf6 {[%clk 1:05:57]} 13. Qh5 {[%clk
0:31:17]} 13... g6 {[%clk 0:57:24]} 14. Bg5 {[%clk 0:18:00]} 14... Qxb2 {[%clk
0:49:22]} 15. Qh4 {[%clk 0:16:43]} 15... Nd7 {[%clk 0:48:51]} 16. Rae1 {[%clk
0:14:47]} 16... Bg7 {[%clk 0:47:20]} 17. Re3 {[%clk 0:12:20]} 17... Qd4 {[%clk
0:41:32]} 18. Ne4 {[%clk 0:11:51]} 18... f5 {[%clk 0:40:48]} 19. Rh3 {[%clk
0:10:54]} 19... h5 {[%clk 0:33:59]} 20. Rd1 {[%clk 0:10:49]} 20... fxe4 {[%clk
0:32:22]} 21. Be2 {[%clk 0:10:54]} 21... Qe5 {[%clk 0:30:36]} 22. Bxh5 {[%clk
0:07:56]} 22... gxh5 {[%clk 0:25:32]} 23. Rg3 {[%clk 0:08:12]} 23... Rf8 {[%clk
0:25:47]} 24. Qxh5 {[%clk 0:05:57]} 24... Qf5 {[%clk 0:23:42]} 25. Qe2 {[%clk
0:04:02]} 25... Rf7 {[%clk 0:20:47]} 26. h4 {[%clk 0:04:26]} 26... b6 {[%clk
0:20:05]} 27. Bh6 {[%clk 0:02:16]} 27... Nf8 {[%clk 0:20:01]} 28. Rg5 {[%clk
0:01:06]} 28... Qf6 {[%clk 0:19:45]} 29. Bxg7 {[%clk 0:00:44]} 29... Rxg7 {[%clk
0:20:11]} 30. Qxe4 {[%clk 0:01:08]} 30... Rb8 {[%clk 0:20:35]} 31. Rxg7+ {[%clk
0:00:43]} 31... Qxg7 {[%clk 0:20:51]} 0-1

[Variant "Standard"]
[Site "Europe Echecs"]

[Event "Sunway Sitges Chess Festival"]
[Date "2024.12.21"]
[White "Tin, Jingyao"]
[Black "Isanzhulov, Arystan"]
[WhiteElo "2480"]
[BlackElo "2395"]
[Round "6.7"]
[Result "1-0"]
[TimeControl "40/5400+30:1800+30"]

1. Nf3 {[%clk 1:28:05]} 1... Nf6 {[%clk 1:29:33]} 2. c4 {[%clk 1:28:22]} 2... e6
{[%clk 1:29:57]} 3. g3 {[%clk 1:28:47]} 3... d5 {[%clk 1:30:09]} 4. Bg2 {[%clk
1:29:10]} 4... Be7 {[%clk 1:30:33]} 5. d4 {[%clk 1:28:46]} 5... O-O {[%clk
1:30:44]} 6. O-O {[%clk 1:28:55]} 6... dxc4 {[%clk 1:29:53]} 7. Qc2 {[%clk
1:29:14]} 7... a6 {[%clk 1:30:16]} 8. a4 {[%clk 1:29:01]} 8... b6 {[%clk
1:30:17]} 9. Ne5 {[%clk 1:21:58]} 9... Ra7 {[%clk 1:29:22]} 10. Qxc4 {[%clk
1:09:51]} 10... Bb7 {[%clk 1:27:40]} 11. Bxb7 {[%clk 1:08:48]} 11... Rxb7 {[%clk
1:27:54]} 12. Nc3 {[%clk 1:08:46]} 12... c5 {[%clk 1:25:03]} 13. Rd1 {[%clk
1:03:36]} 13... cxd4 {[%clk 1:19:31]} 14. Be3 {[%clk 0:53:20]} 14... b5 {[%clk
1:03:57]} 15. axb5 {[%clk 0:51:33]} 15... axb5 {[%clk 1:02:10]} 16. Qxd4 {[%clk
0:51:40]} 16... Qxd4 {[%clk 1:00:45]} 17. Bxd4 {[%clk 0:51:46]} 17... Rc8 {[%clk
0:31:57]} 18. Ra8 {[%clk 0:44:41]} 18... Kf8 {[%clk 0:30:46]} 19. Rda1 {[%clk
0:37:18]} 19... b4 {[%clk 0:27:40]} 20. Na4 {[%clk 0:32:42]} 20... b3 {[%clk
0:25:03]} 21. Nb6 {[%clk 0:26:49]} 21... Rd8 {[%clk 0:11:43]} 22. e3 {[%clk
0:25:50]} 22... Ne4 {[%clk 0:08:23]} 23. f3 {[%clk 0:23:34]} 23... Nd6 {[%clk
0:06:07]} 24. Na4 {[%clk 0:17:03]} 24... Nb5 {[%clk 0:03:57]} 25. Nc5 {[%clk
0:14:06]} 25... Bxc5 {[%clk 0:04:14]} 26. Bxc5+ {[%clk 0:14:34]} 26... Ke8
{[%clk 0:04:41]} 27. Kf1 {[%clk 0:14:01]} 27... Rc8 {[%clk 0:03:16]} 28. Nd3
{[%clk 0:13:23]} 28... f6 {[%clk 0:03:20]} 29. Ke2 {[%clk 0:10:32]} 29... Kf7
{[%clk 0:03:26]} 30. e4 {[%clk 0:06:08]} 30... Rcc7 {[%clk 0:03:27]} 31. Rc1
{[%clk 0:05:41]} 31... Nd7 {[%clk 0:02:55]} 32. Be3 {[%clk 0:05:48]} 32... Rxc1
{[%clk 0:02:48]} 33. Nxc1 {[%clk 0:02:39]} 33... Rc7 {[%clk 0:01:11]} 34. Nxb3
{[%clk 0:02:57]} 34... Rc2+ {[%clk 0:01:29]} 35. Nd2 {[%clk 0:03:24]} 35... Rxb2
{[%clk 0:01:42]} 36. f4 {[%clk 0:03:08]} 36... Nd6 {[%clk 0:00:59]} 37. Ra7
{[%clk 0:03:29]} 37... Rb7 {[%clk 0:00:56]} 38. Ra6 {[%clk 0:03:56]} 38... Ke7
{[%clk 0:00:55]} 39. g4 {[%clk 0:03:55]} 39... Rc7 {[%clk 0:00:53]} 40. Ra8
{[%clk 0:33:24]} 40... Nc4 {[%clk 0:30:40]} 41. Nxc4 {[%clk 0:30:40]} 41... Rxc4
{[%clk 0:30:35]} 42. Kf3 {[%clk 0:30:38]} 42... Rc2 {[%clk 0:15:33]} 43. h4
{[%clk 0:30:33]} 43... h6 {[%clk 0:10:04]} 44. Ra7 {[%clk 0:30:08]} 44... Ke8
{[%clk 0:07:25]} 45. h5 {[%clk 0:28:28]} 45... Ke7 {[%clk 0:05:38]} 46. Bd4
{[%clk 0:28:25]} 46... Ke8 {[%clk 0:05:12]} 47. g5 {[%clk 0:27:06]} 47... e5
{[%clk 0:04:03]} 48. fxe5 {[%clk 0:27:07]} 48... fxe5 {[%clk 0:03:58]} 49. Be3
{[%clk 0:27:17]} 49... hxg5 {[%clk 0:03:38]} 50. Bxg5 {[%clk 0:27:45]} 50... Rh2
{[%clk 0:02:41]} 51. Kg4 {[%clk 0:28:10]} 51... Rf2 {[%clk 0:01:58]} 52. Kg3
{[%clk 0:27:54]} 52... Rf1 {[%clk 0:02:11]} 53. Kg2 {[%clk 0:27:21]} 53... Re1
{[%clk 0:02:14]} 54. Kf3 {[%clk 0:27:47]} 54... Rg1 {[%clk 0:01:39]} 55. Be3
{[%clk 0:26:23]} 55... Rf1+ {[%clk 0:01:39]} 56. Kg4 {[%clk 0:25:55]} 56... Re1
{[%clk 0:00:46]} 57. Bg5 {[%clk 0:21:10]} 57... Rf1 {[%clk 0:01:15]} 58. Rc7
{[%clk 0:20:57]} 58... Rf2 {[%clk 0:00:57]} 59. Bc1 {[%clk 0:20:07]} 59... Nf8
{[%clk 0:00:42]} 60. Be3 {[%clk 0:19:15]} 60... Rf7 {[%clk 0:00:41]} 61. Rc5
{[%clk 0:19:29]} 61... Nd7 {[%clk 0:00:46]} 62. Rc8+ {[%clk 0:18:02]} 62... Ke7
{[%clk 0:01:15]} 63. Kg5 {[%clk 0:18:11]} 63... Rf3 {[%clk 0:01:02]} 64. Bc1
{[%clk 0:18:12]} 64... Rf1 {[%clk 0:00:34]} 65. Kg6 {[%clk 0:10:14]} 65... Nf6
{[%clk 0:00:44]} 66. Bg5 {[%clk 0:08:50]} 66... Kd7 {[%clk 0:00:44]} 67. Rf8
{[%clk 0:03:21]} 67... Rg1 {[%clk 0:00:51]} 68. Rxf6 {[%clk 0:03:28]} 68... gxf6
{[%clk 0:01:06]} 69. Kxf6 {[%clk 0:03:56]} 69... Ke8 {[%clk 0:00:45]} 70. h6
{[%clk 0:04:21]} 70... Rh1 {[%clk 0:00:32]} 71. Kg7 {[%clk 0:04:23]} 71... Rg1
{[%clk 0:00:34]} 72. h7 {[%clk 0:04:07]} 72... Rxg5+ {[%clk 0:00:32]} 73. Kh6
{[%clk 0:04:32]} 73... Rg4 {[%clk 0:00:31]} 74. h8=Q+ {[%clk 0:04:51]} 74... Kf7
{[%clk 0:00:57]} 75. Qxe5 {[%clk 0:04:54]} 1-0

[Variant "Standard"]
[Site "Europe Echecs"]

[Event "Sunway Sitges Chess Festival"]
[Date "2024.12.21"]
[White "Diaz Rosas, Julio Cesar"]
[Black "Li, Di"]
[WhiteElo "2401"]
[BlackElo "2440"]
[Round "6.8"]
[Result "1/2-1/2"]
[TimeControl "40/5400+30:1800+30"]

1. e4 {[%clk 1:30:55]} 1... e5 {[%clk 1:28:56]} 2. Nf3 {[%clk 1:30:51]} 2... Nc6
{[%clk 1:29:05]} 3. Bb5 {[%clk 1:31:09]} 3... a6 {[%clk 1:27:59]} 4. Ba4 {[%clk
1:31:31]} 4... Nf6 {[%clk 1:28:08]} 5. O-O {[%clk 1:31:38]} 5... b5 {[%clk
1:27:27]} 6. Bb3 {[%clk 1:32:02]} 6... Bc5 {[%clk 1:27:46]} 7. a4 {[%clk
1:30:26]} 7... Rb8 {[%clk 1:27:24]} 8. c3 {[%clk 1:30:30]} 8... d6 {[%clk
1:27:17]} 9. d4 {[%clk 1:30:38]} 9... Bb6 {[%clk 1:27:27]} 10. a5 {[%clk
1:30:36]} 10... Ba7 {[%clk 1:26:35]} 11. h3 {[%clk 1:28:51]} 11... O-O {[%clk
1:25:59]} 12. Be3 {[%clk 1:28:29]} 12... exd4 {[%clk 1:25:58]} 13. cxd4 {[%clk
1:27:31]} 13... Ne7 {[%clk 1:24:58]} 14. Nbd2 {[%clk 1:21:18]} 14... c5 {[%clk
1:24:56]} 15. Re1 {[%clk 1:12:55]} 15... c4 {[%clk 1:22:55]} 16. Bc2 {[%clk
1:12:49]} 16... d5 {[%clk 1:22:28]} 17. Bg5 {[%clk 1:00:57]} 17... Nxe4 {[%clk
1:17:58]} 18. Nxe4 {[%clk 1:00:35]} 18... dxe4 {[%clk 1:18:19]} 19. Bxe4 {[%clk
1:00:09]} 19... f6 {[%clk 1:11:20]} 20. Bf4 {[%clk 0:57:00]} 20... Rb7 {[%clk
1:10:00]} 21. Bxb7 {[%clk 0:51:51]} 21... Bxb7 {[%clk 1:10:26]} 22. Qe2 {[%clk
0:51:31]} 22... Ng6 {[%clk 0:46:12]} 23. Qe6+ {[%clk 0:46:53]} 23... Kh8 {[%clk
0:46:37]} 24. Bg3 {[%clk 0:39:03]} 24... Bxf3 {[%clk 0:12:55]} 25. gxf3 {[%clk
0:38:40]} 25... f5 {[%clk 0:13:21]} 26. f4 {[%clk 0:23:36]} 26... Bb8 {[%clk
0:08:33]} 27. d5 {[%clk 0:16:27]} 27... Bd6 {[%clk 0:06:19]} 28. Qe3 {[%clk
0:11:53]} 28... h6 {[%clk 0:03:48]} 29. Qb6 {[%clk 0:11:32]} 29... Nxf4 {[%clk
0:03:07]} 30. Qxd8 {[%clk 0:06:58]} 30... Rxd8 {[%clk 0:03:32]} 31. Bxf4 {[%clk
0:07:24]} 31... Bxf4 {[%clk 0:03:59]} 32. Re6 {[%clk 0:07:47]} 32... b4 {[%clk
0:00:32]} 33. Rxa6 {[%clk 0:03:59]} 33... Be5 {[%clk 0:00:37]} 34. Ra4 {[%clk
0:02:50]} 34... Bxb2 {[%clk 0:00:34]} 35. Rxb4 {[%clk 0:02:54]} 35... c3 {[%clk
0:01:01]} 36. Rc6 {[%clk 0:02:50]} 36... Rxd5 {[%clk 0:01:26]} 37. Ra4 {[%clk
0:02:47]} 37... Rd7 {[%clk 0:00:45]} 38. a6 {[%clk 0:03:06]} 38... Ra7 {[%clk
0:01:12]} 39. Rb4 {[%clk 0:03:15]} 39... Rxa6 {[%clk 0:01:02]} 40. Rxa6 {[%clk
0:32:47]} 40... c2 {[%clk 0:31:27]} 41. Rc4 {[%clk 0:32:12]} 41... c1=Q+ {[%clk
0:31:52]} 42. Rxc1 {[%clk 0:32:39]} 42... Bxc1 {[%clk 0:32:19]} 43. Ra5 {[%clk
0:32:49]} 43... g6 {[%clk 0:32:37]} 44. Ra7 {[%clk 0:33:11]} 44... Kg8 {[%clk
0:32:51]} 45. Kf1 {[%clk 0:33:30]} 45... Bg5 {[%clk 0:32:33]} 46. Ke2 {[%clk
0:33:38]} 46... Bh4 {[%clk 0:32:57]} 47. f3 {[%clk 0:33:54]} 47... Bf6 {[%clk
0:33:16]} 48. Kd3 {[%clk 0:34:18]} 48... Be5 {[%clk 0:33:16]} 49. Kc4 {[%clk
0:34:38]} 49... Bf6 {[%clk 0:33:10]} 50. Kd5 {[%clk 0:35:02]} 50... Bc3 {[%clk
0:33:35]} 51. Ke6 {[%clk 0:35:18]} 51... Bd4 {[%clk 0:33:48]} 52. Rc7 {[%clk
0:31:11]} 52... Bb2 {[%clk 0:34:12]} 53. Rc6 {[%clk 0:31:32]} 53... Kf8 {[%clk
0:33:47]} 54. Rb6 {[%clk 0:30:41]} 54... Bc3 {[%clk 0:34:11]} 55. Ra6 {[%clk
0:29:06]} 55... Bb2 {[%clk 0:34:27]} 56. h4 {[%clk 0:29:12]} 56... h5 {[%clk
0:34:52]} 57. Rc6 {[%clk 0:28:01]} 57... Kg8 {[%clk 0:34:59]} 58. Ra6 {[%clk
0:28:23]} 1/2-1/2

[Variant "Standard"]
[Site "Europe Echecs"]